[Event "*** Titled Tuesday Blitz"]
[Site "Chess.com"]
[Date "2019.10.01"]
[Round "8"]
[White "TheFireChess"]
[Black "pedroholly22"]
[Result "1-0"]
[WhiteElo "2509"]
[BlackElo "2342"]
[TimeControl "180+2"]
[EndTime "15:01:14 PDT"]
[Termination "TheFireChess won by resignation"]

1. e4 {[%clk 0:02:57.1]} 1... e6 {[%clk 0:02:59.9]} 2. Nc3 {[%clk 0:02:57.6]}
2... d5 {[%clk 0:03:00.2]} 3. d3 {[%clk 0:02:59.2]} 3... Nf6 {[%clk 0:02:59.3]}
4. e5 {[%clk 0:02:57.4]} 4... Nfd7 {[%clk 0:02:59.6]} 5. f4 {[%clk 0:02:57.5]}
5... c5 {[%clk 0:02:58]} 6. Nf3 {[%clk 0:02:58.7]} 6... Nc6 {[%clk 0:02:58.8]}
7. g3 {[%clk 0:03:00.2]} 7... Be7 {[%clk 0:02:59.8]} 8. Bg2 {[%clk 0:03:01.6]}
8... O-O {[%clk 0:03:01.4]} 9. O-O {[%clk 0:03:03.2]} 9... f6 {[%clk 0:03:03.1]}
10. exf6 {[%clk 0:03:04.8]} 10... Bxf6 {[%clk 0:03:03.9]} 11. Re1 {[%clk
0:03:04.8]} 11... Nb6 {[%clk 0:03:03]} 12. h3 {[%clk 0:02:59.9]} 12... g6 {[%clk
0:02:48.8]} 13. g4 {[%clk 0:02:57.7]} 13... a6 {[%clk 0:02:49.5]} 14. Ne2 {[%clk
0:02:58.1]} 14... Qd6 {[%clk 0:02:49.7]} 15. d4 {[%clk 0:02:52.7]} 15... cxd4
{[%clk 0:02:50.5]} 16. Nexd4 {[%clk 0:02:52.2]} 16... Nxd4 {[%clk 0:02:50.6]}
17. Nxd4 {[%clk 0:02:53.2]} 17... e5 {[%clk 0:02:52.1]} 18. fxe5 {[%clk
0:02:48.2]} 18... Bxe5 {[%clk 0:02:54]} 19. Nf3 {[%clk 0:02:30]} 19... Bg3
{[%clk 0:02:49.7]} 20. Rf1 {[%clk 0:02:27.3]} 20... Bd7 {[%clk 0:02:49.3]} 21.
Bh6 {[%clk 0:02:23.7]} 21... Bb5 {[%clk 0:02:39.6]} 22. Bxf8 {[%clk 0:02:21.8]}
22... Rxf8 {[%clk 0:02:39]} 23. Re1 {[%clk 0:02:13.8]} 23... Bxe1 {[%clk
0:02:37.7]} 24. Qxe1 {[%clk 0:02:15.7]} 24... d4 {[%clk 0:02:35.5]} 25. Rd1
{[%clk 0:02:11.4]} 25... Bc6 {[%clk 0:02:29.6]} 26. Rxd4 {[%clk 0:01:33.6]}
26... Qf6 {[%clk 0:02:28.1]} 27. Rd3 {[%clk 0:01:08.7]} 27... Nc4 {[%clk
0:02:25.4]} 28. b3 {[%clk 0:01:04.3]} 28... Bxf3 {[%clk 0:02:21.6]} 29. Rxf3
{[%clk 0:00:55.8]} 29... Qd4+ {[%clk 0:02:21.8]} 30. Qf2 {[%clk 0:00:45]} 30...
Qd1+ {[%clk 0:02:10.3]} 31. Qf1 {[%clk 0:00:24.1]} 31... Qd4+ {[%clk 0:02:08.1]}
32. Kh1 {[%clk 0:00:21.6]} 32... Rxf3 {[%clk 0:02:07.6]} 33. Qxf3 {[%clk
0:00:23.5]} 33... Ne3 {[%clk 0:02:07.6]} 34. c4 {[%clk 0:00:15.6]} 34... Nxg2
{[%clk 0:02:03.9]} 35. Kxg2 {[%clk 0:00:16.4]} 35... Qd2+ {[%clk 0:02:03.4]} 36.
Kg3 {[%clk 0:00:17.3]} 36... Qd6+ {[%clk 0:02:02.5]} 37. Qf4 {[%clk 0:00:18.1]}
37... Qd7 {[%clk 0:02:02.1]} 38. Qe4 {[%clk 0:00:17.2]} 38... Kg7 {[%clk
0:02:01.7]} 39. g5 {[%clk 0:00:17.8]} 39... h5 {[%clk 0:02:00.5]} 40. gxh6+
{[%clk 0:00:18.6]} 40... Kxh6 {[%clk 0:02:01.3]} 41. Qh4+ {[%clk 0:00:19.5]}
41... Kg7 {[%clk 0:02:02.1]} 42. Qf4 {[%clk 0:00:21.4]} 42... Qd3+ {[%clk
0:02:01.7]} 43. Qf3 {[%clk 0:00:22.7]} 43... Qd6+ {[%clk 0:02:02.1]} 44. Kf2
{[%clk 0:00:23.4]} 44... Qd2+ {[%clk 0:02:03]} 45. Qe2 {[%clk 0:00:24.8]} 45...
Qf4+ {[%clk 0:02:04]} 46. Kg2 {[%clk 0:00:24.4]} 46... Qf7 {[%clk 0:02:02.9]}
47. Qe5+ {[%clk 0:00:24.7]} 47... Kh7 {[%clk 0:02:03.6]} 48. h4 {[%clk
0:00:25.5]} 48... Qd7 {[%clk 0:02:04.3]} 49. h5 {[%clk 0:00:25]} 49... Qg4+
{[%clk 0:02:05]} 50. Kf2 {[%clk 0:00:24.5]} 50... gxh5 {[%clk 0:02:06.2]} 51.
Qc7+ {[%clk 0:00:24.4]} 51... Kg6 {[%clk 0:02:07.4]} 52. Qxb7 {[%clk 0:00:25.8]}
52... Qf4+ {[%clk 0:02:06.1]} 53. Qf3 {[%clk 0:00:26]} 53... Qd2+ {[%clk
0:02:06.5]} 54. Qe2 {[%clk 0:00:26.3]} 54... Qf4+ {[%clk 0:02:07.5]} 55. Kg2
{[%clk 0:00:27.5]} 55... h4 {[%clk 0:02:06.9]} 56. Qf3 {[%clk 0:00:26.7]} 56...
Qd2+ {[%clk 0:02:06.8]} 57. Kh3 {[%clk 0:00:28]} 57... Qxa2 {[%clk 0:02:07.8]}
58. Kxh4 {[%clk 0:00:29.4]} 58... Qh2+ {[%clk 0:02:08]} 59. Kg4 {[%clk
0:00:30.7]} 59... Qa2 {[%clk 0:02:08.2]} 60. Kf4 {[%clk 0:00:29]} 60... Kf6
{[%clk 0:02:07.9]} 61. Ke4+ {[%clk 0:00:30.3]} 61... Ke6 {[%clk 0:02:09.3]} 62.
Qe3 {[%clk 0:00:29.9]} 62... Kd6 {[%clk 0:02:08.6]} 63. Qb6+ {[%clk 0:00:30.6]}
63... Kd7 {[%clk 0:02:09.3]} 64. Qb7+ {[%clk 0:00:32]} 64... Kd6 {[%clk
0:02:09.6]} 65. Qd5+ {[%clk 0:00:33.3]} 65... Kc7 {[%clk 0:02:10.7]} 66. Qd3
{[%clk 0:00:34.7]} 66... Qg2+ {[%clk 0:02:10.3]} 67. Kd4 {[%clk 0:00:35.7]}
67... Qg5 {[%clk 0:02:07.2]} 68. Kc3 {[%clk 0:00:34.5]} 68... Qe5+ {[%clk
0:02:07.5]} 69. Qd4 {[%clk 0:00:33.8]} 69... Qe1+ {[%clk 0:02:08.1]} 70. Kb2
{[%clk 0:00:34.4]} 70... a5 {[%clk 0:02:08.3]} 71. Qc3 {[%clk 0:00:33]} 71...
Qe2+ {[%clk 0:02:05.5]} 72. Ka3 {[%clk 0:00:33.8]} 72... Qh5 {[%clk 0:02:06.3]}
73. Ka4 {[%clk 0:00:25.8]} 73... Kb6 {[%clk 0:02:07.1]} 74. c5+ {[%clk
0:00:21.8]} 74... Kc6 {[%clk 0:02:07.5]} 75. Kxa5 {[%clk 0:00:21]} 75... Qf7
{[%clk 0:02:02.3]} 76. Ka4 {[%clk 0:00:20.7]} 76... Qa7+ {[%clk 0:01:54.5]} 77.
Qa5 {[%clk 0:00:21.2]} 77... Qh7 {[%clk 0:01:42.8]} 78. Qb6+ {[%clk 0:00:21.4]}
78... Kd5 {[%clk 0:01:42.8]} 79. Qd6+ {[%clk 0:00:22.4]} 79... Ke4 {[%clk
0:01:44.3]} 80. c6 {[%clk 0:00:14.6]} 80... Qa7+ {[%clk 0:01:43]} 81. Kb4 {[%clk
0:00:15.7]} 81... Qb6+ {[%clk 0:01:44.2]} 82. Ka3 {[%clk 0:00:13.7]} 82... Qa6+
{[%clk 0:01:42.5]} 83. Kb2 {[%clk 0:00:12.8]} 83... Qe2+ {[%clk 0:01:43.9]} 84.
Kc3 {[%clk 0:00:12]} 84... Qe1+ {[%clk 0:01:40]} 85. Kc4 {[%clk 0:00:12.2]}
85... Qc1+ {[%clk 0:01:29.9]} 86. Kb4 {[%clk 0:00:10.9]} 86... Qd2+ {[%clk
0:01:30.3]} 87. Qxd2 {[%clk 0:00:10.8]} 1-0

[Event "*** Titled Tuesday Blitz"]
[Site "Chess.com"]
[Date "2019.10.01"]
[Round "8"]
[White "Sajkochess"]
[Black "Komissarov_alex"]
[Result "1-0"]
[WhiteElo "2263"]
[BlackElo "1924"]
[TimeControl "180+2"]
[EndTime "15:01:14 PDT"]
[Termination "Sajkochess won on time"]

1. e4 {[%clk 0:03:01.9]} 1... e5 {[%clk 0:03:00.7]} 2. Nf3 {[%clk 0:02:59.5]}
2... Nc6 {[%clk 0:02:59.4]} 3. Bb5 {[%clk 0:03:00.4]} 3... Nd4 {[%clk 0:02:56]}
4. Nxd4 {[%clk 0:02:54.2]} 4... exd4 {[%clk 0:02:56.3]} 5. O-O {[%clk
0:02:53.2]} 5... c6 {[%clk 0:02:55.3]} 6. Bc4 {[%clk 0:02:52.2]} 6... Nf6 {[%clk
0:02:55.6]} 7. d3 {[%clk 0:02:40.9]} 7... d5 {[%clk 0:02:54.1]} 8. exd5 {[%clk
0:02:40.8]} 8... Nxd5 {[%clk 0:02:54]} 9. c3 {[%clk 0:02:31.7]} 9... Be7 {[%clk
0:02:52]} 10. cxd4 {[%clk 0:02:31.5]} 10... O-O {[%clk 0:02:51.2]} 11. Nc3
{[%clk 0:02:32.4]} 11... Bf6 {[%clk 0:02:44.8]} 12. Qb3 {[%clk 0:02:26.2]} 12...
Nb6 {[%clk 0:02:35.1]} 13. Ne2 {[%clk 0:02:12.2]} 13... Bxd4 {[%clk 0:02:31.3]}
14. Nxd4 {[%clk 0:02:12.2]} 14... Qxd4 {[%clk 0:02:29.7]} 15. Be3 {[%clk
0:02:12.8]} 15... Qd8 {[%clk 0:02:28.3]} 16. Bc5 {[%clk 0:02:09.5]} 16... Nxc4
{[%clk 0:02:24.8]} 17. dxc4 {[%clk 0:01:49.9]} 17... Re8 {[%clk 0:02:16.3]} 18.
Rfe1 {[%clk 0:01:50.8]} 18... b6 {[%clk 0:02:02.9]} 19. Rxe8+ {[%clk 0:01:36.3]}
19... Qxe8 {[%clk 0:02:00.7]} 20. Bb4 {[%clk 0:01:34.5]} 20... c5 {[%clk
0:01:56.6]} 21. Bc3 {[%clk 0:01:30.1]} 21... Bb7 {[%clk 0:01:55.2]} 22. Re1
{[%clk 0:01:25.4]} 22... Qc6 {[%clk 0:01:55.4]} 23. f3 {[%clk 0:01:26.2]} 23...
h6 {[%clk 0:01:53]} 24. Qc2 {[%clk 0:01:27]} 24... Re8 {[%clk 0:01:48.8]} 25.
Rxe8+ {[%clk 0:01:21.6]} 25... Qxe8 {[%clk 0:01:48.2]} 26. Kf2 {[%clk
0:01:22.9]} 26... Qe6 {[%clk 0:01:45.2]} 27. Qd3 {[%clk 0:01:15.8]} 27... Ba6
{[%clk 0:01:40.7]} 28. b3 {[%clk 0:01:16.1]} 28... Bc8 {[%clk 0:01:36.5]} 29.
Qd8+ {[%clk 0:01:10.6]} 29... Kh7 {[%clk 0:01:35.9]} 30. Qc7 {[%clk 0:01:11.3]}
30... Qd7 {[%clk 0:01:32.6]} 31. Qe5 {[%clk 0:01:10.5]} 31... f6 {[%clk
0:01:30.4]} 32. Qb8 {[%clk 0:01:02.7]} 32... Qb7 {[%clk 0:01:17]} 33. Qf4 {[%clk
0:00:59.6]} 33... Qd7 {[%clk 0:01:14.7]} 34. Qe4+ {[%clk 0:00:54.6]} 34... Qf5
{[%clk 0:01:14.2]} 35. Ke3 {[%clk 0:00:52.8]} 35... Qxe4+ {[%clk 0:01:06]} 36.
fxe4 {[%clk 0:00:53.4]} 36... Kg6 {[%clk 0:01:04.3]} 37. Be1 {[%clk 0:00:53.6]}
37... Kf7 {[%clk 0:01:02.5]} 38. Bg3 {[%clk 0:00:53.9]} 38... a6 {[%clk
0:01:00.6]} 39. Bc7 {[%clk 0:00:54.3]} 39... b5 {[%clk 0:00:59.7]} 40. Bb6
{[%clk 0:00:51.1]} 40... bxc4 {[%clk 0:00:58.8]} 41. bxc4 {[%clk 0:00:52.1]}
41... Be6 {[%clk 0:00:58.3]} 42. Kd3 {[%clk 0:00:53.3]} 42... Ke7 {[%clk
0:00:56.3]} 43. Bxc5+ {[%clk 0:00:53.5]} 43... Kf7 {[%clk 0:00:55.1]} 44. Bd6
{[%clk 0:00:50]} 44... g5 {[%clk 0:00:49.5]} 45. h3 {[%clk 0:00:47.2]} 45... h5
{[%clk 0:00:43.2]} 46. a4 {[%clk 0:00:39.5]} 46... Ke8 {[%clk 0:00:37.2]} 47.
Kd4 {[%clk 0:00:38.6]} 47... Kd7 {[%clk 0:00:36.4]} 48. Bf8 {[%clk 0:00:38]}
48... g4 {[%clk 0:00:32.5]} 49. hxg4 {[%clk 0:00:33.3]} 49... Bxg4 {[%clk
0:00:32.5]} 50. Bg7 {[%clk 0:00:33.3]} 50... Bd1 {[%clk 0:00:30.3]} 51. a5
{[%clk 0:00:33.4]} 51... Ke6 {[%clk 0:00:20.3]} 52. Kc5 {[%clk 0:00:32.3]} 52...
Be2 {[%clk 0:00:17.3]} 53. Kd4 {[%clk 0:00:26.6]} 53... Bf1 {[%clk 0:00:16.2]}
54. g3 {[%clk 0:00:27.2]} 54... Be2 {[%clk 0:00:16.6]} 55. Bh6 {[%clk
0:00:27.6]} 55... Bf1 {[%clk 0:00:15.5]} 56. Bf4 {[%clk 0:00:28.4]} 56... Be2
{[%clk 0:00:14.6]} 57. c5 {[%clk 0:00:29.3]} 57... Bb5 {[%clk 0:00:13.1]} 58.
Bb8 {[%clk 0:00:20.5]} 58... Bc6 {[%clk 0:00:12.1]} 59. Bf4 {[%clk 0:00:20.3]}
59... Bb5 {[%clk 0:00:12]} 60. Bh6 {[%clk 0:00:21.2]} 60... Bc6 {[%clk
0:00:10.2]} 61. Bf8 {[%clk 0:00:22.2]} 61... Bb5 {[%clk 0:00:10.3]} 62. Bd6
{[%clk 0:00:22.5]} 62... Bc6 {[%clk 0:00:08.8]} 63. e5 {[%clk 0:00:23.6]} 63...
fxe5+ {[%clk 0:00:07.3]} 64. Bxe5 {[%clk 0:00:24.8]} 64... Bb5 {[%clk
0:00:07.3]} 65. Bf4 {[%clk 0:00:25.5]} 65... Bc6 {[%clk 0:00:06.9]} 66. Bc7
{[%clk 0:00:26.2]} 66... Bb5 {[%clk 0:00:07]} 67. Bb6 {[%clk 0:00:27.1]} 67...
Bc6 {[%clk 0:00:06.7]} 68. Ke3 {[%clk 0:00:27.6]} 68... Bd5 {[%clk 0:00:05.5]}
69. Kf4 {[%clk 0:00:28.5]} 69... Bc6 {[%clk 0:00:02.8]} 70. Kg5 {[%clk
0:00:28.2]} 1-0

[Event "*** Titled Tuesday Blitz"]
[Site "Chess.com"]
[Date "2019.10.01"]
[Round "8"]
[White "GianmarcoVaR"]
[Black "vova-79"]
[Result "1/2-1/2"]
[WhiteElo "2598"]
[BlackElo "2470"]
[TimeControl "180+2"]
[EndTime "15:01:47 PDT"]
[Termination "Game drawn by repetition"]

1. Nf3 {[%clk 0:02:59.2]} 1... d5 {[%clk 0:03:00.1]} 2. g3 {[%clk 0:03:00.7]}
2... c6 {[%clk 0:03:00.4]} 3. Bg2 {[%clk 0:03:02.3]} 3... Nf6 {[%clk 0:03:01.7]}
4. O-O {[%clk 0:02:56]} 4... Bg4 {[%clk 0:03:01.7]} 5. d3 {[%clk 0:02:56.8]}
5... Nbd7 {[%clk 0:02:57.8]} 6. h3 {[%clk 0:02:55.3]} 6... Bh5 {[%clk
0:02:56.9]} 7. g4 {[%clk 0:02:56.3]} 7... Bg6 {[%clk 0:02:57.6]} 8. Nh4 {[%clk
0:02:58]} 8... e5 {[%clk 0:02:55.2]} 9. e3 {[%clk 0:02:58.9]} 9... Bc5 {[%clk
0:02:44.1]} 10. Kh1 {[%clk 0:02:42.4]} 10... e4 {[%clk 0:02:35.4]} 11. Nxg6
{[%clk 0:02:35.6]} 11... hxg6 {[%clk 0:02:34.4]} 12. Nc3 {[%clk 0:02:37.1]}
12... exd3 {[%clk 0:02:17.2]} 13. cxd3 {[%clk 0:02:37.7]} 13... O-O {[%clk
0:02:14.3]} 14. e4 {[%clk 0:02:36.5]} 14... dxe4 {[%clk 0:02:11.7]} 15. dxe4
{[%clk 0:02:36.5]} 15... Ne5 {[%clk 0:02:12.2]} 16. Qxd8 {[%clk 0:02:33.8]}
16... Raxd8 {[%clk 0:02:07.8]} 17. f4 {[%clk 0:02:35.3]} 17... Nd3 {[%clk
0:02:04.6]} 18. e5 {[%clk 0:02:36.9]} 18... Nxc1 {[%clk 0:01:53.2]} 19. Raxc1
{[%clk 0:02:33.5]} 19... Nd7 {[%clk 0:01:53.4]} 20. Ne4 {[%clk 0:02:31.2]} 20...
Be7 {[%clk 0:01:53.6]} 21. Rf2 {[%clk 0:01:25.5]} 21... Rfe8 {[%clk 0:01:43.3]}
22. Kg1 {[%clk 0:01:21.1]} 22... Nf8 {[%clk 0:01:16.8]} 23. Bf1 {[%clk
0:01:13.2]} 23... Rd4 {[%clk 0:01:09.4]} 24. Nc5 {[%clk 0:01:10.5]} 24... b6
{[%clk 0:01:04]} 25. Nb3 {[%clk 0:01:09.9]} 25... Re4 {[%clk 0:00:53.3]} 26.
Rxc6 {[%clk 0:00:48.9]} 26... Ne6 {[%clk 0:00:47.1]} 27. Rc4 {[%clk 0:00:46.4]}
27... Re1 {[%clk 0:00:43.1]} 28. Rd2 {[%clk 0:00:37.1]} 28... g5 {[%clk
0:00:35]} 29. f5 {[%clk 0:00:27.8]} 29... Nc5 {[%clk 0:00:33.7]} 30. Kf2 {[%clk
0:00:21.5]} 30... Nxb3 {[%clk 0:00:26.5]} 31. Kxe1 {[%clk 0:00:16.4]} 31... Nxd2
{[%clk 0:00:26]} 32. Kxd2 {[%clk 0:00:17.6]} 32... Bc5 {[%clk 0:00:27.1]} 33. e6
{[%clk 0:00:17.6]} 33... fxe6 {[%clk 0:00:26.6]} 34. Re4 {[%clk 0:00:19.1]}
34... Rd8+ {[%clk 0:00:25.8]} 35. Kc2 {[%clk 0:00:19.3]} 35... exf5 {[%clk
0:00:25.9]} 36. Bc4+ {[%clk 0:00:19.1]} 36... Kf8 {[%clk 0:00:25]} 37. gxf5
{[%clk 0:00:20.2]} 37... Rd4 {[%clk 0:00:25.1]} 38. Rxd4 {[%clk 0:00:18.5]}
38... Bxd4 {[%clk 0:00:25.8]} 39. b4 {[%clk 0:00:18.7]} 39... a5 {[%clk
0:00:25.3]} 40. Kd3 {[%clk 0:00:19.9]} 40... Bg1 {[%clk 0:00:23.3]} 41. b5
{[%clk 0:00:19.8]} 41... Ke7 {[%clk 0:00:22.6]} 42. Ke4 {[%clk 0:00:21.3]} 42...
Kf6 {[%clk 0:00:22.3]} 43. Bd3 {[%clk 0:00:21]} 43... g6 {[%clk 0:00:21.3]} 44.
fxg6 {[%clk 0:00:16]} 44... Kxg6 {[%clk 0:00:22.1]} 45. Ke5+ {[%clk 0:00:16.5]}
45... Kh5 {[%clk 0:00:22.3]} 46. Kf5 {[%clk 0:00:11.2]} 46... Kh4 {[%clk
0:00:22.2]} 47. Bf1 {[%clk 0:00:11.8]} 47... Bc5 {[%clk 0:00:21.7]} 48. a4
{[%clk 0:00:10.4]} 48... Bg1 {[%clk 0:00:23.6]} 49. Ke4 {[%clk 0:00:11.3]} 49...
Bc5 {[%clk 0:00:25.2]} 50. Kf3 {[%clk 0:00:10.4]} 50... Bd4 {[%clk 0:00:25.3]}
51. Ke4 {[%clk 0:00:11.3]} 51... Bc5 {[%clk 0:00:27.2]} 52. Kf5 {[%clk
0:00:12.4]} 52... Bd4 {[%clk 0:00:27.2]} 53. Kg6 {[%clk 0:00:11.8]} 53... Bc5
{[%clk 0:00:29.1]} 54. Kf7 {[%clk 0:00:12.9]} 54... g4 {[%clk 0:00:28.8]} 55.
hxg4 {[%clk 0:00:13]} 55... Kxg4 {[%clk 0:00:30.7]} 56. Ke6 {[%clk 0:00:14]}
56... Kf4 {[%clk 0:00:31.3]} 57. Kd5 {[%clk 0:00:15.4]} 57... Ke3 {[%clk
0:00:32.2]} 58. Kc4 {[%clk 0:00:16.8]} 58... Kd2 {[%clk 0:00:32.7]} 59. Bd3
{[%clk 0:00:16.5]} 59... Kc1 {[%clk 0:00:32.6]} 60. Kb3 {[%clk 0:00:16.7]} 60...
Kd2 {[%clk 0:00:32.7]} 61. Bg6 {[%clk 0:00:18.2]} 61... Be3 {[%clk 0:00:32.8]}
62. Kc4 {[%clk 0:00:19.6]} 62... Bc5 {[%clk 0:00:34.4]} 63. Kb3 {[%clk
0:00:20.6]} 63... Be3 {[%clk 0:00:34.3]} 64. Kc4 {[%clk 0:00:21.9]} 64... Bc5
{[%clk 0:00:36.2]} 65. Kd5 {[%clk 0:00:22.8]} 65... Kc3 {[%clk 0:00:34.4]} 66.
Bh5 {[%clk 0:00:21.3]} 66... Kc2 {[%clk 0:00:34.5]} 67. Kc4 {[%clk 0:00:22.2]}
67... Kb2 {[%clk 0:00:34.4]} 68. Kd5 {[%clk 0:00:23.6]} 68... Ka3 {[%clk
0:00:34.9]} 69. Bd1 {[%clk 0:00:24.7]} 69... Kb2 {[%clk 0:00:36.8]} 70. Kc4
{[%clk 0:00:26]} 70... Kc1 {[%clk 0:00:37.2]} 71. Bb3 {[%clk 0:00:27.9]} 71...
Kb2 {[%clk 0:00:39]} 72. Bd1 {[%clk 0:00:29.1]} 72... Kc1 {[%clk 0:00:39.2]} 73.
Be2 {[%clk 0:00:30]} 73... Kb2 {[%clk 0:00:41.1]} 74. Bd3 {[%clk 0:00:30.8]}
74... Bg1 {[%clk 0:00:38.7]} 75. Bg6 {[%clk 0:00:29.1]} 75... Bf2 {[%clk
0:00:40.6]} 76. Bh5 {[%clk 0:00:30.3]} 76... Bg1 {[%clk 0:00:38.4]} 77. Kd3
{[%clk 0:00:31.2]} 77... Kb3 {[%clk 0:00:36.7]} 78. Bd1+ {[%clk 0:00:29.2]}
78... Kb4 {[%clk 0:00:37]} 79. Ke4 {[%clk 0:00:26.1]} 79... Bc5 {[%clk
0:00:38.9]} 80. Kd5 {[%clk 0:00:27.3]} 80... Kc3 {[%clk 0:00:38.5]} 81. Kc6
{[%clk 0:00:28.8]} 81... Kd2 {[%clk 0:00:38.5]} 82. Bf3 {[%clk 0:00:28.2]} 82...
Kc2 {[%clk 0:00:38.3]} 83. Kb7 {[%clk 0:00:27.2]} 83... Kb3 {[%clk 0:00:37.5]}
84. Bd1+ {[%clk 0:00:28.2]} 84... Kc3 {[%clk 0:00:39.4]} 85. Ka6 {[%clk
0:00:28.7]} 85... Kd2 {[%clk 0:00:39.8]} 86. Bg4 {[%clk 0:00:29.3]} 86... Kc3
{[%clk 0:00:41.7]} 87. Bh5 {[%clk 0:00:28.8]} 87... Kc2 {[%clk 0:00:41.7]} 88.
Kb7 {[%clk 0:00:28.7]} 88... Kb2 {[%clk 0:00:43.6]} 89. Kc6 {[%clk 0:00:29.7]}
89... Kc3 {[%clk 0:00:45.5]} 90. Kd5 {[%clk 0:00:30.9]} 90... Kb4 {[%clk
0:00:47.4]} 91. Bd1 {[%clk 0:00:30.8]} 91... Ka3 {[%clk 0:00:49.3]} 92. Kc4
{[%clk 0:00:31.8]} 92... Kb2 {[%clk 0:00:50.7]} 93. Kd3 {[%clk 0:00:32.9]} 93...
Kc1 {[%clk 0:00:52.6]} 94. Ke2 {[%clk 0:00:34.8]} 94... Kb2 {[%clk 0:00:53.8]}
95. Kd3 {[%clk 0:00:36]} 95... Ka3 {[%clk 0:00:53.4]} 96. Bc2 {[%clk 0:00:37.9]}
96... Kb2 {[%clk 0:00:53.5]} 97. Bd1 {[%clk 0:00:39.4]} 1/2-1/2